Cogmind - Beta 16 @@@ ROGUE MODE // 2025.11.10 @ 13:04:57 Player: Demo Result: Destroyed by Y-45 Defender with Beam Rifle Performance ------------- Evolutions (0) 0 Regions Visited (3) 600 Robots Destroyed (20) 100 Value Destroyed (212) 212 Prototype IDs (0) 0 Alien Tech Used (0) 0 Bonus (25) 25 TOTAL SCORE: 937 Bonus ------- Follower Combat Kills 25 Cogmind --------- Core Integrity 0/250 Matter 267/300 Energy 100/100 System Corruption 0% Temperature Cool (9) Movement Core (50) Location -10/Subcaves Parts ------- > --- POWER (1) -------- (None) > --- PROPULSION (2) --- Subdweller Monowheel > --- UTILITY (2) ------ Terrain Scanner > --- WEAPON (2) ------- Hammer > --- INVENTORY (5) ---- Cooling System Large Matter Pod (150) Grenade Launcher Grenade Launcher Peak State ------------ > --- POWER ------------ (None) > --- PROPULSION ------- Light Treads Light Treads > --- UTILITY ---------- Structural Scanner Signal Interpreter > --- WEAPON ----------- Light Assault Rifle Grenade Launcher > --- INVENTORY -------- Cooling System Large Matter Pod Grenade Launcher Hammer [Rating: 6] Favorites ----------- Power None Propulsion Light Treads Treads Light Treads Wheel Wheel Utility Structural Scanner Device Structural Scanner Processor Signal Interpreter Weapon Light Assault Rifle Energy Gun Small Laser Ballistic Gun Light Assault Rifle Launcher Grenade Launcher Impact Weapon Hammer Build | -11 -10 -10 -10 ------- Run | Yrd Mat Min Sub Slots Evolved . | . . . . Power . | . . . . Propulsion . | . . . . Utility . | . . . . Weapon . | . . . . Parts Attached 15 | 4 3 6 2 Power . | . . . . Engine . | . . . . Core . | . . . . Reactor . | . . . . Propulsion 4 | 2 . 1 1 Treads 2 | 2 . . . Leg . | . . . . Wheel 2 | . . 1 1 Hover . | . . . . Flight . | . . . . Utility 3 | . 2 1 . Device 2 | . 1 1 . Storage . | . . . . Processor 1 | . 1 . . Hackware . | . . . . Protection . | . . . . Artifact . | . . . . Weapon 8 | 2 1 4 1 Energy Gun 3 | 2 . 1 . Energy Cannon . | . . . . Ballistic Gun 3 | . . 3 . Ballistic Cannon . | . . . . Launcher 1 | . 1 . . Special Weapon . | . . . . Impact Weapon 1 | . . . 1 Slashing Weapon . | . . . . Piercing Weapon . | . . . . Special Melee Weapon . | . . . . Unidentified Prototypes . | . . . . Parts Lost 5 | . . 2 3 Power . | . . . . Propulsion 3 | . . 1 2 Utility 1 | . . . 1 Weapon 1 | . . 1 . Highest Loss Streak 1 | . . 1 1 To Critical Strikes . | . . . . Average Backups 4 | . 4 4 4 Power . | . . . . Propulsion . | . . . . Utility 2 | . 3 2 2 Weapon 2 | . 1 2 2 Tool/Special . | . . . . Unused Backups 7 | . 3 1 3 Power . | . . . . Propulsion . | . . . . Utility 5 | . 2 1 2 Weapon 2 | . 1 . 1 Tool/Special . | . . . . Average Slot Usage (%) 69 | . 52 76 62 Treads 19 | . 28 24 3 Wheel 5 | . . 1 18 Device 15 | . 1 15 21 Processor 8 | . 8 12 . Energy Gun 5 | . 14 6 . Ballistic Gun 10 | . . 14 7 Impact Weapon 2 | . . . 10 Peak Build Rating 6 | 3 5 6 5 Average Rating 4 | 2 3 5 4 On Entrance 3 | . 3 5 5 Avg Prop Armor Cover (%) 27 | 35 33 28 21 Naked Turns . | . . . . Heaviest Build 6 | 2 3 6 5 Greatest Support 3 | 3 3 3 3 Greatest Overweight (x) 1 | . . 1 1 Average Overweight (x) . | . . . . Largest Inventory Capacity 5 | 5 5 5 5 Average Capacity 5 | 5 5 5 5 Most Carried 5 | 2 5 5 5 Average Carried 4 | 1 4 4 4 Final Capacity 5 | 5 5 5 5 Final Carried 5 | 2 5 5 4 Class Distribution -------------------- 97% | Mutant Dominant Class ---------------- Mutant | -10/Materials Mutant | -10/Mines Mutant | -10/Subcaves Resources | -11 -10 -10 -10 ----------- Run | Yrd Mat Min Sub Matter Collected 502 | 204 54 167 77 Remotely . | . . . . Salvage Created 267 | . 54 183 30 Parts 31 | . 4 21 6 Haulers Intercepted . | . . . . Recyclers Shooed . | . . . . Parts Field Recycled . | . . . . Retrieved Matter . | . . . . Parts Self-Destructed 6 | . . . 6 Prevented . | . . . . Parts Restored . | . . . . Kills | -11 -10 -10 -10 ------- Run | Yrd Mat Min Sub Combat Hostiles Destroyed 13 | . . 8 5 Guns 2 | . . 2 . AOE 10 | . . 6 4 Classes Destroyed 5 | . 1 4 . Worker 4 | . 2 2 . Builder 2 | . . 2 . Tunneler 1 | . . 1 . Swarmer 11 | . . 6 5 Grunt 2 | . . 2 . Best Kill Streak 5 | . 2 4 5 Combat Bots Only 5 | . . 3 5 Max Kills in Single Turn 3 | . 1 3 2 Gunslinging . | . . . . Exploded 3 | . . 3 2 Melee . | . . . . Uniques/NPCs Destroyed . | . . . . Combat | -11 -10 -10 -10 -------- Run | Yrd Mat Min Sub Hostile Shots Fired 84 | . 2 52 30 Missed 28 | . 1 11 16 Hits 56 | . 1 41 14 Projectile 56 | . 1 41 14 AOE 4 | . . 4 . Critical Strikes 2 | . . 1 1 Damage Taken 871 | . 11 618 242 Core 262 | . . 160 102 Absorbed by Shields . | . . . . Core Remaining (%) 100 | 100 . . . Volleys Fired 71 | . 14 54 3 Largest 2 | . 1 2 1 Hottest 60 | . 50 60 30 Shots Fired 104 | . 14 87 3 Gun 93 | . 11 82 . Cannon . | . . . . Launcher 11 | . 3 5 3 Special . | . . . . Kinetic 57 | . . 57 . Thermal 36 | . 11 25 . Explosive 11 | . 3 5 3 Electromagnetic . | . . . . Robot Hit Streak 10 | . 2 10 . Robot Miss Streak 4 | . 1 4 4 Penetration Max . | . . . . Secondary Targets . | . . . . Shots Hit Robots 67 | . 5 52 10 Core Hits 30 | . 2 24 4 Critical Kills . | . . . . Critical Parts Destroyed 1 | . . . 1 Critical Strikes 3 | . . . 3 Smash 3 | . . . 3 Melee Attacks 35 | . . . 35 Impact 35 | . . . 35 Slashing . | . . . . Piercing . | . . . . Sneak Attacks . | . . . . Combat Hostiles . | . . . . Follow-up Attacks . | . . . . Damage Inflicted 1317 | . 62 785 470 Guns 506 | . 62 444 . Cannons . | . . . . Explosions 583 | . . 341 242 Melee 228 | . . . 228 Ramming . | . . . . Kinetic 307 | . . 307 . Thermal 199 | . 62 137 . Explosive 583 | . . 341 242 Electromagnetic . | . . . . Impact 228 | . . . 228 Slashing . | . . . . Piercing . | . . . . Highest Corruption . | . . . . Average Corruption . | . . . . Corruption Purged . | . . . . Corruption Blocked . | . . . . Overload Shots . | . . . . Overflow Damage 52 | . . 33 19 Projectiles . | . . . . Explosions 33 | . . 33 . Melee 19 | . . . 19 Knockbacks 1 | . . . 1 Impact 1 | . . . 1 Kinetic . | . . . . Secondary . | . . . . Self-Inflicted Damage 38 | . . 38 . Shots 1 | . . 1 . Rammed . | . . . . Targets Rammed . | . . . . Kicked . | . . . . Crushed . | . . . . Highest Temperature 28 | . 25 28 . Average Temperature 12 | . 23 9 . Received Heat Transfer 243 | . 6 165 72 Siege Activations . | . . . . Martial Activations . | . . . . Shielding Activations . | . . . . Robots Disrupted . | . . . . Combat Hostiles . | . . . . Robots Corrupted 1 | . . . 1 Combat Hostiles 1 | . . . 1 Parts Fried 1 | . . . 1 Impact Corruptions 2 | . . . 2 Robots Melted . | . . . . Combat Hostiles . | . . . . Parts Melted . | . . . . Heat Transferred 485 | . 185 300 . Parts Sabotaged . | . . . . Parts Stolen . | . . . . Parts Stripped . | . . . . Power Chain Reactions . | . . . . Alert | -11 -10 -10 -10 ------- Run | Yrd Mat Min Sub Maximum Alert Level . | . . . . Low Security (%) 100 | 100 100 100 . Level 1 . | . . . . Level 2 . | . . . . Level 3 . | . . . . Level 4 . | . . . . Level 5 . | . . . . High Security . | . . . . Max Security . | . . . . Peak Influence 113 | . 13 113 . Initial . | . . . . Average 24 | . 1 29 . Influence Increases 485 | . 23 322 140 Destroy 0b10 Robot/C 280 | . . 180 100 Destroy 0b10 Robot/NC 35 | . 10 25 . Destroy Leader 40 | . . 30 10 Allied During Kill 8 | . . 8 . Destroy Structure 32 | . 13 19 . Lose Combat Pursuer 90 | . . 60 30 Influence Decreases 365 | . 23 253 89 Entered New Map 37 | . . . 37 Time Decay 256 | . 23 193 40 Lost Part 32 | . . 20 12 Lost Ally 40 | . . 40 . Squads Dispatched 1 | . 1 . . Investigation . | . . . . Extermination . | . . . . Reinforcement 1 | . 1 . . Assault . | . . . . Garrison . | . . . . Intercept . | . . . . Searches Triggered . | . . . . Construction Impeded . | . . . . Haulers Reinforced . | . . . . Active Scanning Responses . | . . . . Cargo Convoy Interrupts . | . . . . Stealth | -11 -10 -10 -10 --------- Run | Yrd Mat Min Sub Distress Signals . | . . . . Communications Jammed . | . . . . Distress Signals . | . . . . Times Spotted 28 | . 3 14 11 Peak Tracking Total 5 | . 2 3 5 Tactical Retreats 4 | . . 2 2 Traps | -11 -10 -10 -10 ------- Run | Yrd Mat Min Sub Traps Triggered 1 | . . . 1 Indirectly . | . . . . Trap Hack Attempts . | . . . . Triggered . | . . . . Disarmed . | . . . . Reprogrammed . | . . . . Reused . | . . . . Traps Extracted . | . . . . Installed . | . . . . Triggered . | . . . . Machines | -11 -10 -10 -10 ---------- Run | Yrd Mat Min Sub Machines Disabled . | . . . . Max in Single Turn . | . . . . Machines Repaired . | . . . . Machines Dismantled . | . . . . Machines Sabotaged . | . . . . Overloaded Fab Kills . | . . . . Hacking | -11 -10 -10 -10 --------- Run | Yrd Mat Min Sub Machines Accessed 1 | . . . 1 Terminals . | . . . . Fabricators . | . . . . Repair Stations . | . . . . Recycling Units . | . . . . Scanalyzers . | . . . . Garrison Access . | . . . . Total Hacks 4 | . . . 4 Successful 4 | . . . 4 Failed . | . . . . Catastrophic . | . . . . Database Lockouts . | . . . . Manual . | . . . . Terminals . | . . . . Fabricators . | . . . . Repair Stations . | . . . . Recycling Units . | . . . . Scanalyzers . | . . . . Garrison Access . | . . . . Terminal Hacks 4 | . . . 4 Record 4 | . . . 4 Fabricator Hacks . | . . . . Repair Station Hacks . | . . . . Recycling Unit Hacks . | . . . . Scanalyzer . | . . . . Garrison Access Hacks . | . . . . Unauthorized Hacks . | . . . . Terminals . | . . . . Fabricators . | . . . . Repair Stations . | . . . . Recycling Units . | . . . . Scanalyzers . | . . . . Garrison Access . | . . . . Data Cores Recovered . | . . . . Used . | . . . . Hacking Detections . | . . . . Full Trace Events . | . . . . Feedback Events . | . . . . Feedback Blocked . | . . . . Robot Schematics Acquired . | . . . . Robots Built . | . . . . Authchips . | . . . . Time . | . . . . Total Robot Build Rating . | . . . . Part Schematics Acquired . | . . . . Parts Built . | . . . . Authchips . | . . . . Time . | . . . . Total Part Build Rating . | . . . . Part Studies Acquired . | . . . . Parts Repaired . | . . . . Time . | . . . . Parts Recycled . | . . . . Recycled Matter . | . . . . Retrieved Matter . | . . . . Retrieved Components . | . . . . Parts Scanalyzed . | . . . . Part Schematics Acquired . | . . . . Parts Damaged . | . . . . Bothacking | -11 -10 -10 -10 ------------ Run | Yrd Mat Min Sub Used RIF Installer . | . . . . Robots Hacked . | . . . . Non-combat . | . . . . Combat . | . . . . Robot Hacks Applied . | . . . . Relay Couplers Released . | . . . . Fabnet Peak Effective % . | . . . . Robots Rewired . | . . . . Allies Hacked . | . . . . Hacks Repelled . | . . . . Allies | -11 -10 -10 -10 -------- Run | Yrd Mat Min Sub Total Allies 4 | . . 4 . Largest Group 4 | . . 4 . Highest-Rated Group 71 | . . 71 . Highest-Rated Ally 31 | . . 31 . Total Orders . | . . . . Ally Attacks 5 | . . 5 . Total Damage 12 | . . 12 . Kills 1 | . . 1 . Allies Corrupted . | . . . . Allies Melted . | . . . . Intel | -11 -10 -10 -10 ------- Run | Yrd Mat Min Sub Active Infowar (turns) 1242 | . 22 862 358 Terrain 447 | . . 89 358 Structural 1072 | . 22 862 188 Robot Analysis Total . | . . . . Derelict Logs Recovered 1 | . . 1 . Drone Launches . | . . . . Drone Recoveries . | . . . . Exploration | -11 -10 -10 -10 ------------- Run | Yrd Mat Min Sub Turns Passed 1440 | 34 184 864 358 Spaces Moved 1670 | 51 285 1008 326 Core 1670 | 51 285 1008 326 Treads . | . . . . Legs . | . . . . Wheels . | . . . . Hover . | . . . . Flight . | . . . . Fastest Speed 50 | 50 50 50 50 Average Speed 52 | 50 50 51 58 Slowest Speed 100 | 50 50 100 100 Overloaded Moves . | . . . . Propulsion Burnouts . | . . . . Robots Hopped . | . . . . Potential Cave-ins 2 | . . 2 . Cave-ins Triggered . | . . . . Exploration Rate (%) 45 | 4 50 99 28 Regions Visited 3 Branch Regions 2 Pre-discovered Areas . | . . . . Known Exits Taken 1 | . 1 . . Unknown Exits Taken 2 | 1 . 1 . Scrap Searched 5 | . . 2 3 Spaces Dug 2 | . . . 2 Terrain Destroyed 49 | . 18 19 12 Melee 2 | . . . 2 Projectile . | . . . . AOE 47 | . 18 19 10 Terrain Rammed . | . . . . Walls Destroyed . | . . . . Machines Disabled . | . . . . Actions | -11 -10 -10 -10 --------- Run | Yrd Mat Min Sub Total 2073 | 57 312 1276 428 Wait 259 | . 1 199 59 Move 1667 | 50 284 1007 326 Hop . | . . . . Pick Up 9 | 2 6 1 . Fast Attach 12 | 4 2 5 1 Attach 5 | . 1 2 2 Detach 4 | . 1 2 1 Swap 1 | . . 1 . Drop 10 | 1 3 5 1 Fire 71 | . 14 54 3 Melee 35 | . . . 35 Ram . | . . . . Kick . | . . . . Crush . | . . . . Escape Stasis . | . . . . Rewire . | . . . . Trap . | . . . . Miscellaneous . | . . . . Route ------- -11/Scrapyard -10/Materials (discovered 2 exits: *Mat / *Min) -10/Mines (discovered 4 exits: *Mat x2 / [*Exi] / *Sub) -10/Subcaves History --------- Turn | Location | Event 15 | -11/Scrapyard | Discovered new exit (range 16) 35 | -11/Scrapyard | Entered Materials 155 | -10/Materials | Discovered new exit (range 11) 161 | -10/Materials | Identified exit to Materials 212 | -10/Materials | Discovered new exit (range 12) 213 | -10/Materials | Met 8R-AWN 218 | -10/Materials | Identified exit to Mines 219 | -10/Materials | Entered Mines 220 | -10/Mines | Followed 8R-AWN into the Mines 278 | -10/Mines | Assembled infested the area 283 | -10/Mines | Assisted by a Guerilla fighting off Assembled 309 | -10/Mines | Build established: Mutant 420 | -10/Mines | Discovered new exit (range 5) 549 | -10/Mines | Discovered exit to Materials (range 8) 646 | -10/Mines | Assisted by bots powering up and referring to "LRC-V3" 701 | -10/Mines | Received a Mining Laser from a helpful Derelict 872 | -10/Mines | Core integrity fell below 50% 912 | -10/Mines | Lost 4 allies 1080 | -10/Mines | Discovered new exit (range 7) 1083 | -10/Mines | Entered Subcaves 1084 | -10/Subcaves | Approached by a straggling Scientist 1155 | -10/Subcaves | Shifting Twisted Machinery released Flamer 1203 | -10/Subcaves | Shifting Twisted Machinery released Shrapnel Trap 1266 | -10/Subcaves | Disturbed a concealed Subdweller 1288 | -10/Subcaves | Disturbed a concealed Subdweller 1289 | -10/Subcaves | Core integrity fell below 20% 1314 | -10/Subcaves | Visited Clippyterm 1315 | -10/Subcaves | Learned Factory garrison access intel 1361 | -10/Subcaves | Shifting Twisted Machinery released Sub. Power Source 1441 | -10/Subcaves | Destroyed by Y-45 Defender with Beam Rifle Last Messages --------------- 01411_ Destroyed Flight Unit. 01411_ S-10 Pest system corrupted by crushing effect. 01412_ S-10 Pest system terminally corrupted. 01412_ Lgt. Ion Engine fried. 01414_ G-34 Mercenary suffers critical hit (Smash). 01414_ Destroyed Aluminum Leg. 01414_ G-34 Mercenary system corrupted by crushing effect. 01416_ Acquired 10 matter. 01419_ Critical hit (Burn: +37). 01419_ Wheel destroyed. 01431_ S-10 Pest destroyed. 01438_ Flight Unit fries itself beyond repair. 01440_ Lgt. Assault Rifle fries itself beyond repair. 01440_ Acquired 7 matter. 01441_ Lgt. Ion Engine fries itself beyond repair. Map ----- +----------------------------------------------------+ | " #????????????????????????????????????????????? | | ##?#?????????????????????????????????????????? | | #???????????????????????????????????????????? | | " ###???????????????????????????????????????????? | | """##????????????????????????????????????????????? | | """ #????????????????????????????????????????????? | | """ #????????????????????????????????????????????? | | ##????????????????????????????????????????????? | | ##????????????????????????????????????????????? | | ##?#???#?????????????????????????????????????? | | ##?????###?#????????????????????????????????? | | ####??# ##?????????????????????????????????? | | ##? ##????????????????????????????????? | | ## ## #????????????????????????????????? | | ## #????????????????????????????????? | | #????? ???????????????????????????? | | #?##??????????????????????????????? | | #?????????????????????????????????? | | #?????????????????????????????????? | | ##?????????????????????????????????? | | #?????????? ???????????????????????? | | # ## %####??????????????????????????????????? | | ## ### #????###########??????????????????????? | | ### ### ###### ## ????????????????????? | | ## ###" ## # #?????????????????? | | g Y @ #?????????????????? | | = #????????????????? | | ### ## #??????????????? | | #### #?##### #??????????????? | | #???# #?????## # #?????????????? | | #????## ## ##?????# #### #?????????????? | | ??????######??????## #??? #?????????????? | | ??????????????????? ##??? ###?????????????? | | ??????????????????# #???? #???????????????? | | ???????????#?????? ????? #???????????????? | | ????????????????? ????? #???????????????? | | ????????????????# ???? #???????????????? | | ????????????????# ?????? ???????????????? | | ????????????????# ??????## ????????????????? | | ?????????????????? ??????????????????????????? | | ???????????????????? ????????????????????????????? | | ?????????????????????????????????????????????????? | | ?????????????????????????????????????????????????? | | ?????????????????????????????????????????????????? | | ?????????????????????????????????????????????????? | | ?????????????????????????????????????????????????? | | ?????????????????????????????????????????????????? | | ?????????????????????????????????????????????????? | | ?????????????????????????????????????????????????? | | ?????????????????????????????????????????????????? | +----------------------------------------------------+ Best States ------------- Heat Dissipation 25 Energy Generation 5 Energy Capacity 100 Matter Stores 300 Matter Capacity 300 Sight Range 16 Terrain Scan Range 14 Terrain Scan Density 10 Evasion (%) 50 Recoil Reduction 2 Item Schematics ----------------- None Robot Schematics ------------------ None Fabricated ------------ Nothing Repaired ---------- Nothing Studied --------- None Alien Tech Used ----------------- None Achievements -------------- Follow The Leader Challenges ------------ None Game ------ Seed CloakSwarmScanner Manual? 0 Play Time 00:12:03 Cumulative 392.8 hours Start 2025.11.10 @ 12:55:03 End 2025.11.10 @ 13:04:57 Sessions 1 Manual Loads 0 Difficulty Rogue Special Mode None Game No. 364 Rogue 364 Adventurer 0 Explorer 0 Win Type - Total 3 Types 2/1/0/0/0/0/0/0/0/0 Lore% 84 Gallery% 83 Achievement% 62 Wizard Run 0 Options --------- Layout 1 ASCII 0 Keyboard 0 Movement Numpad Keybinds 0 Fullscreen 1 Font 24/Smallcaps Map View 50x35 Zoom Use 0% Tactical HUD 1 Map Filters NONE Filters NONE Steam 1 RUN: fccf63d4-1189-4a43-8046-030d01383d14